Workbook

Sheet 2015_Bangalore
A1: Fellowship Requirement for the year 2014 - 15
A2: S.no | B2: Name of the Child / Youth | C2: Course | D2: Year | E2: College /School Fee | F2: Exam fee | G2: Travel | H2: Uniform / Dresses | I2: Note book / Records | J2: Total
A3: 1 | B3: Ediga Manjula | C3: TTC | E3: 4500 | J3: =SUM(E3:I3) -> 4500
A4: 2 | B4: K.Ramesh | C4: Bcom.ca | D4: III | E4: 2500 | J4: =SUM(E4:I4) -> 2500
A5: 3 | B5: G.Kavitha | C5: Bsc | D5: II | E5: 750 | F5: 450 | I5: 1000 | J5: 2200
A6: 4 | B6: H.Gandadhar | C6: Inter (HEC)II | E6: 350 | F6: 500 | G6: 3800 | J6: 4650
A7: 5 | B7: C.Ramanjineyulu | C7: B.A | D7: II | E7: 500 | F7: 450 | G7: 5120 | J7: 6070
A8: 6 | B8: B.Madhu sre | C8: Bsc.com | D8: II | E8: 3500 | F8: 450 | G8: 1620 | J8: 5570
A9: 7 | B9: Boya kottala Anil kumar | C9: Bsc | D9: I | E9: 500 | F9: 500 | I9: 500 | J9: 1500
A10: 8 | B10: S.Kalpana | C10: Bsc(Nursing) | D10: II | E10: 10000 | J10: 10000
A11: 9 | B11: T.Pothanna | C11: Bcom | D11: II | E11: 3000 | G11: 800 | J11: 3800
A12: 10 | B12: S.Sabhiha | C12: Bcom | D12: II | E12: 3000 | F12: 500 | G12: 1800 | I12: 750 | J12: 6050
A13: 11 | B13: M.Ramanamma | C13: Bcom | D13: I | E13: 3000 | F13: 500 | G13: 1800 | J13: 5300
A14: 12 | B14: Mangala Tirumalesu | C14: inter | D14: II | E14: 500 | F14: 500 | G14: 1800 | J14: 2800
A15: 13 | B15: B.Nagesh | C15: Bcom | D15: I | E15: 500 | F15: 450 | G15: 5120 | J15: 6070
A16: 14 | B16: T.vannamma | C16: BA | D16: II | E16: 500 | F16: 500 | G16: 2000 | J16: 3000
A17: 15 | B17: S.Nagamani | C17: BA | D17: I | E17: 500 | F17: 500 | G17: 1500 | J17: 2500
A18: 16 | B18: Anjineyulu | C18: inter(mpc) | D18: II | E18: 4000 | J18: 4000
A19: 17 | B19: Govardan | C19: Inter | D19: II | E19: 500 | G19: 2000 | J19: 2500
A20: 18 | B20: Chandra sekara | C20: Inter | D20: I | G20: 1500 | J20: 1500
A21: 19 | B21: B.Ashok | C21: Bcom | D21: II | E21: 500 | G21: 1500 | J21: 2000
A22: 20 | B22: Mounika | C22: Tailoring | D22: 4 Months | E22: 2000 | G22: 2000 | J22: 4000
A23: 21 | B23: M.Anjali | C23: Inter | D23: I | E23: 500 | F23: 370 | J23: 870
A24: 22 | B24: Babu | C24: Inter | D24: I | E24: 500 | G24: 2000 | J24: 2500
A25: 23 | B25: A.Likhita | C25: Inter | D25: I | E25: 500 | G25: 2000 | J25: 2500
A26: 24 | B26: E.Divya | C26: Inter | D26: II | E26: 500 | G26: 1500 | J26: 2000
A27: 25 | B27: E.Manjula | C27: Inter | D27: I | E27: 500 | G27: 1500 | J27: 2000
A28: 26 | B28: Prathusha | C28: Inter | D28: II | E28: 500 | G28: 1500 | I28: 160 | J28: 2160
A29: 27 | B29: R.Mahendra | C29: High School | D29: 7th Standard | H29: 1350 | I29: 150 | J29: 1500
A30: 28 | B30: G.madhan | C30: High School | D30: 10th standard | H30: 1750 | I30: 380 | J30: 2130
A31: 29 | B31: R.Sunil | C31: High School | D31: 9th standard | H31: 250 | I31: 230 | J31: 480
A32: 30 | B32: U.Sumitra | C32: High School | D32: 10th standard | H32: 1450 | I32: 200 | J32: 1650
A33: 31 | B33: R.Chandra | C33: High School | D33: 9th standard | G33: 900 | H33: 1450 | I33: 400 | J33: 2750
A34: 32 | B34: Farida | C34: High School | D34: 9th standard | H34: 1450 | I34: 200 | J34: 1650
A35: 33 | B35: V.Siva Kumar | C35: High School | D35: 10th standard | H35: 1200 | I35: 400 | J35: 1600
A36: 34 | B36: C.Haritha | C36: High School | D36: 10th standard | H36: 1450 | I36: 300 | J36: 1750
A37: 35 | B37: Anil kumar | C37: High School | D37: 8th Standard | H37: 1200 | I37: 400 | J37: 1600
A38: 36 | B38: Nagendra | C38: High School | D38: 10th standard | H38: 1450 | I38: 400 | J38: 1850
A39: 37 | B39: Malli karjuna | C39: High School | D39: 8th Standard | H39: 2000 | I39: 500 | J39: 2500
A40: Tota Amount | E40: =SUM(E3:E39) -> 43600 | F40: =SUM(F3:F39) -> 5670 | G40: 41760 | H40: 15000 | I40: 5970 | J40: 112000

Sheet 2015-16_proposal2
A1: Fellowship Requirement for the year 2015-16
A2: S.no | B2: Name of the Child | C2: Course | D2: Year | E2: college fee | F2: Exam fee | G2: Travel | H2: Uniform / Dresses | I2: Note book /Records | J2: Total
A3: 1 | B3: Ediga Manjula | C3: TTC | E3: 5500 | J3: =SUM(E3:I3) -> 5500
A4: 2 | B4: K.Ramesh | C4: Bcom.ca | D4: III | E4: 3000 | F4: 500 | J4: =SUM(E4:I4) -> 3500
A5: 3 | B5: G.Kavitha | C5: Bsc | D5: III | E5: 750 | F5: 700 | G5: 1500 | I5: 1000 | J5: 3950
A6: 4 | B6: H.Gandadhar | C6: BA | D6: I | E6: 500 | F6: 500 | G6: 1600 | J6: 2600
A7: 5 | B7: C.Ramanjineyulu | C7: B.A | D7: III | E7: 500 | F7: 450 | G7: 1800 | J7: 2750
A8: 6 | B8: B.Madhu sre | C8: Bsc.com | D8: III | E8: 3500 | F8: 450 | G8: 2000 | J8: 5950
A9: 7 | B9: Boya kottala Anil kumar | C9: Bsc | D9: II | E9: 500 | F9: 650 | I9: 500 | J9: 1650
A10: 8 | B10: S.Kalpana | C10: Bsc(Nursing) | D10: III | E10: 10000 | J10: 10000
A11: 9 | B11: T.Pothanna | C11: Bcom | D11: III | E11: 3000 | G11: 2350 | J11: 5350
A12: 10 | B12: S.Sabhiha | C12: Bcom | D12: III | E12: 3000 | F12: 500 | G12: 1800 | I12: 750 | J12: 6050
A13: 11 | B13: M.Ramanamma | C13: Bcom | D13: II | E13: 3000 | F13: 500 | G13: 2000 | J13: 5500
A14: 12 | B14: Mangala Tirumalesu | C14: Degree | D14: I | E14: 500 | F14: 500 | G14: 1800 | J14: 2800
A15: 13 | B15: B.Nagesh | C15: Bcom | D15: II | E15: 500 | F15: 450 | G15: 1800 | J15: 2750
A16: 14 | B16: T.vannamma | C16: BA | D16: III | E16: 500 | F16: 500 | G16: 2000 | J16: 3000
A17: 15 | B17: S.Nagamani | C17: BA | D17: II | E17: 500 | F17: 500 | G17: 1500 | I17: 300 | J17: 2800
A18: 16 | B18: Anjineyulu | C18: Bsc.ca | D18: II | E18: 3000 | G18: 2000 | J18: 5000
A19: 17 | B19: Govardan | C19: Degree | D19: I | E19: 500 | F19: 500 | G19: 2000 | J19: 3000
A20: 18 | B20: Chandra sekara | C20: Inter | D20: II | E20: 500 | G20: 1500 | I20: 210 | J20: 2210
A21: 19 | B21: B.Ashok | C21: Bcom | D21: III | E21: 500 | F21: 500 | G21: 1500 | I21: 300 | J21: 2800
A22: 20 | B22: Mounika | C22: Tailoring | E22: 5000 | J22: 5000
A23: 21 | B23: M.Anjali | C23: Inter | D23: II | E23: 500 | F23: 500 | I23: 500 | J23: 1500
A24: 22 | B24: Babu | C24: Inter | D24: II | E24: 500 | F24: 500 | G24: 2000 | J24: 3000
A25: 23 | B25: A.Likhita | C25: Inter | D25: II | E25: 500 | F25: 500 | G25: 1500 | I25: 200 | J25: 2700
A26: 24 | B26: E.Divya | C26: Degree | D26: I | E26: 500 | F26: 500 | G26: 2000 | I26: 500 | J26: 3500
A27: 25 | B27: E.Manjula | C27: Inter | D27: II | E27: 500 | F27: 500 | G27: 1500 | I27: 300 | J27: 2800
A28: 26 | B28: prathusha | C28: Degree | D28: I | E28: 500 | F28: 500 | G28: 1500 | I28: 300 | J28: 2800
A29: 27 | B29: G.madhan | C29: Inter | D29: I | E29: 500 | F29: 500 | G29: 1800 | H29: 1000 | I29: 300 | J29: 4100
A30: 28 | B30: U.Sumitra | C30: Inter | D30: I | E30: 500 | F30: 500 | G30: 1800 | I30: 300 | J30: 3100
A31: 29 | B31: C.Haritha | C31: Inter | D31: I | E31: 500 | F31: 500 | G31: 1800 | I31: 300 | J31: 3100
A32: 30 | B32: Nagendra | C32: Inter | D32: I | E32: 500 | F32: 500 | G32: 1800 | H32: 1200 | I32: 300 | J32: 4300
A33: 31 | B33: Bharathi | C33: Degree | D33: I | E33: 500 | F33: 500 | G33: 2000 | J33: 3000
A34: 32 | B34: Y.Anjineyulu | C34: Degree | D34: II | E34: 500 | F34: 500 | G34: 2000 | J34: 3000
A35: 33 | B35: Mahesh | C35: Degree | D35: II | E35: 500 | F35: 500 | G35: 2000 | J35: 3000
A36: 34 | B36: Dhamodhar | C36: Degree | D36: I | E36: 500 | F36: 500 | G36: 1500 | J36: 2500
A37: 35 | B37: Rajiya | C37: Inter | D37: I | E37: 500 | F37: 370 | H37: 1600 | I37: 300 | J37: 2770
A38: 36 | B38: safeera | C38: Inter | D38: I | E38: 500 | F38: 370 | I38: 1000 | J38: 1870
A39: 37 | B39: K.Chittamma | C39: Inter | D39: I | E39: 1050 | F39: 370 | H39: 2250 | J39: 3670
A40: 38 | B40: K.kavitha | C40: Inter | D40: I | E40: 1050 | F40: 350 | H40: 2250 | J40: 3650
A41: 39 | B41: K.Geetha | C41: Inter | D41: II | E41: 500 | F41: 370 | G41: 1800 | I41: 250 | J41: 2920
A42: 40 | B42: K.Kalavathi | C42: Bcom.ca | D42: II | F42: 500 | G42: 3150 | I42: 300 | J42: 3950
A43: 41 | B43: K.vanaja | C43: Inter | D43: II | E43: 500 | F43: 370 | G43: 3800 | J43: 4670
A44: 42 | B44: Bhalavamsi | C44: Degree | D44: II | E44: 500 | F44: 500 | G44: 2350 | J44: 3350
A45: 43 | B45: Nagendra | C45: Inter | D45: I | E45: 500 | F45: 370 | G45: 1300 | I45: 300 | J45: 2470
A46: 44 | B46: Hemalatha | C46: Degree | D46: II | E46: 500 | F46: 500 | G46: 2350 | J46: 3350
A47: 45 | B47: Anil kumar | C47: Degree | D47: III | E47: 500 | F47: 500 | G47: 2500 | J47: 3500
A48: 46 | B48: B.Nagarjuna | C48: Degree | E48: 500 | F48: 500 | G48: 2000 | J48: 3000
A49: 47 | B49: Rajshekara | G49: 2500 | J49: 2500
A50: 48 | B50: Jagadeesh | C50: Inter | D50: I | E50: 500 | F50: 370 | G50: 1900 | J50: 2770
A51: 49 | B51: Sravani | C51: inter | D51: I | E51: 500 | F51: 370 | G51: 1400 | J51: 2270
A52: 50 | B52: Narmada | C52: Degree | D52: II | E52: 500 | F52: 500 | G52: 2000 | J52: 3000
A53: 51 | B53: R.Mahendra | C53: High School | D53: 8th Standard | H53: 1350 | I53: 150 | J53: 1500
A54: 52 | B54: R.Sunil | C54: High School | D54: 10th standard | H54: 250 | I54: 230 | J54: 480
A55: 53 | B55: R.Chandra | C55: High School | D55: 10th standard | G55: 900 | H55: 1450 | I55: 400 | J55: 2750
A56: 54 | B56: Farida | C56: High School | D56: 10th standard | H56: 1450 | I56: 200 | J56: 1650
A57: 55 | B57: V.Siva Kumar | C57: High School | D57: 10th standard | H57: 1200 | I57: 400 | J57: 1600
A58: 56 | B58: Anil kumar | C58: High School | D58: 9th standard | H58: 1200 | I58: 400 | J58: 1600
A59: 57 | B59: Malli karjuna | C59: High School | D59: 9th standard | H59: 2000 | I59: 500 | J59: 2500
A60: 58 | B60: A.Ganesh | C60: High School | D60: 6th standard | H60: 1600 | I60: 300 | J60: 1900
A61: 59 | B61: A.Hemanth | C61: High School | D61: 7th standard | H61: 1600 | I61: 350 | J61: 1950
A62: 60 | B62: Nagamma | C62: High School | D62: 6th standard | H62: 1600 | I62: 300 | J62: 1900
A63: 61 | B63: C.Anjali | C63: High School | D63: 6th standard | H63: 1600 | I63: 400 | J63: 2000
A64: 62 | B64: Sulochana | C64: High School | D64: 6th standard | H64: 1600 | I64: 400 | J64: 2000
A65: 63 | B65: Anitha | C65: High School | D65: 6th standard | H65: 1600 | I65: 300 | J65: 1900
A66: 64 | B66: Shilpa | C66: High School | D66: 9th standrd | G66: 1500 | I66: 500 | J66: 2000
B67: Total Amount | E67: =SUM(E3:E66) -> 59850 | F67: =SUM(F3:F66) -> 20510 | G67: =SUM(G3:G66) -> 79800 | H67: 26800 | I67: 13040 | J67: =SUM(J3:J66) -> 200000

Sheet Sheet3
